bitfinex/quotes_SOLUSD_20250425
["timestamp","ask_amount","ask_price","bid_price","bid_amount"]
[1745546931918,123.39553143,152.82,152.81,0.063]
[1745546932116,40.69553143,152.82,152.81,0.063]
[1745546932815,29.74367093,152.82,152.81,0.063]
[1745546934592,40.69553143,152.82,152.81,0.063]
[1745546934792,29.74367093,152.82,152.81,0.063]
[1745546935295,25.81399342,152.82,152.81,0.063]
[1745546937100,51.67183185,152.82,152.81,0.063]
[1745546937806,27.11948634,152.82,152.81,0.063]
[1745546938499,8.46983748,152.82,152.81,0.063]
[1745546939307,12.41259782,152.82,152.81,0.063]
[1745546940598,31.06224668,152.82,152.81,0.063]
[1745546942514,18.46767056,152.86,152.81,0.063]
[1745546942515,84.00549292,152.85,152.81,0.063]
[1745546942711,30.92008511,152.82,152.81,0.063]
[1745546943019,31.06224668,152.82,152.81,0.063]
[1745546945418,44.32224668,152.82,152.81,0.063]
[1745546945823,55.28719001,152.82,152.81,0.063]
[1745546945999,55.61459219,152.79,152.78,0.063]
[1745546946194,56.92008511,152.79,152.78,0.063]
[1745546946600,57.06224668,152.79,152.78,0.063]
[1745546949198,18.79181043,152.78,152.77,0.03]
[1745546949397,29.75675376,152.78,152.77,0.03]
[1745546949598,29.75675376,152.78,152.76,0.063]
[1745546949797,44.32224668,152.77,152.76,0.063]
[1745546950022,127.02224668,152.77,152.76,0.063]
[1745546952822,55.75675376,152.76,152.75,0.063]
[1745546953016,44.79181043,152.75,152.74,0.063]
[1745546953212,57.06224668,152.75,152.74,0.063]
[1745546954527,26.14216157,152.72,152.71,0.03]
[1745546954697,62.63754115,152.72,152.71,0.03]
[1745546954904,51.67259782,152.72,152.71,0.03]
[1745546956119,81.28719001,152.72,152.71,0.03]
[1745546956631,44.64964886,152.69,152.68,0.03]
[1745546956825,56.92008511,152.69,152.68,0.03]
[1745546957530,57.06224668,152.69,152.68,0.03]
[1745546964442,0.14216157,152.68,152.61,23.66556571]
[1745546964616,0.14216157,152.65,152.61,23.66556571]
[1745546964817,1.44765449,152.65,152.61,23.66556571]
[1745546965022,12.41259782,152.65,152.61,12.70062238]
[1745546965208,10.96494333,152.64,152.61,12.70062238]
[1745546965416,12.27043625,152.63,152.61,12.70062238]
[1745546966338,1.30549292,152.63,152.61,12.70062238]
[1745546966718,12.27043625,152.64,152.61,12.70062238]
[1745546968642,10.96494333,152.62,152.61,0.03]
[1745546969639,11.1071049,152.63,152.61,0.03]
[1745546970027,12.41259782,152.63,152.61,0.03]
[1745546970339,1.44765449,152.63,152.61,0.03]
[1745546970517,10.96494333,152.62,152.61,0.03]
[1745546970722,12.41259782,152.63,152.61,0.03]
[1745546971225,1.44765449,152.63,152.61,0.03]
[1745546971421,95.11259782,152.63,152.61,0.03]
[1745546971920,10.96494333,152.62,152.61,0.03]
[1745546972125,1.0,152.8,152.64,29.4356]
[1745546972336,10.96494333,152.77,152.72,10.96494333]
[1745546972636,26.0,152.75,152.71,10.96494333]
[1745546972836,10.96494333,152.75,152.71,10.96494333]
[1745546973043,10.96494333,152.75,152.71,17.51309682]
[1745546973443,7.02335112,152.75,152.71,13.57150461]
[1745546973844,26.0,152.74,152.71,13.57150461]
[1745546974449,33.02335112,152.74,152.71,6.54815349]
[1745546975341,36.97606362,152.74,152.7,6.54878847]
[1745546975545,10.97606362,152.73,152.7,6.54878847]
[1745546975843,36.97606362,152.74,152.7,6.54878847]
[1745546977044,26.0,152.74,152.7,10.97606362]
[1745546977434,36.97606362,152.74,152.67,16.37476157]
[1745546977639,39.26,152.74,152.69,10.97606362]
[1745546977839,10.97606362,152.72,152.67,16.37476157]
[1745546978032,50.23606362,152.74,152.69,10.97606362]
[1745546978234,50.23606362,152.74,152.65,6.5509335]
[1745546978235,10.97606362,152.72,152.65,6.5509335]
[1745546978564,10.97606362,152.72,152.68,10.97606362]
[1745546978728,10.97606362,152.72,152.65,6.5509335]
[1745546979047,82.7,152.71,152.65,6.5509335]
[1745546979226,82.7,152.71,152.68,10.97606362]
[1745546979421,24.23606362,152.74,152.69,10.97606362]
[1745546979645,13.26,152.74,152.7,10.97606362]
[1745546979948,13.26,152.74,152.65,24.23801278]
[1745546980136,13.26,152.74,152.66,18.64964886]
[1745546980451,26.0,152.75,152.71,10.97606362]
[1745546980831,26.0,152.75,152.67,1.30945412]
[1745546981135,26.0,152.75,152.68,6.54964631]
[1745546981338,26.0,152.75,152.69,2.96012264]
[1745546981661,26.0,152.75,152.72,10.97606362]
[1745546981834,26.0,152.75,152.69,1.6508]
[1745546982037,26.0,152.75,152.71,10.97606362]
[1745546982524,26.0,152.75,152.72,10.97606362]
[1745546982850,26.0,152.75,152.71,10.97606362]
[1745546983435,26.0,152.75,152.72,10.97606362]
[1745546984454,36.97606362,152.75,152.7,6.54875586]
[1745546984634,36.97606362,152.75,152.71,10.97606362]
[1745546985428,26.0,152.75,152.71,17.52430317]
[1745546985630,26.0,152.75,152.72,10.97606362]
[1745546985943,36.97606362,152.75,152.7,10.97606362]
[1745546986133,26.0,152.75,152.71,10.97606362]
[1745546986750,10.97606362,152.73,152.69,1.6508]
[1745546987055,10.97606362,152.72,152.67,10.97606362]
[1745546987345,10.97606362,152.72,152.67,6.55006039]
[1745546987552,26.0,152.75,152.69,10.97606362]
[1745546987742,10.97606362,152.74,152.69,10.97606362]
[1745546987928,10.97606362,152.73,152.68,10.97606362]
[1745546988128,10.97606362,152.73,152.67,6.55006039]
[1745546988329,10.97606362,152.73,152.68,10.97606362]
[1745546989352,10.97606362,152.73,152.68,17.52569003]
[1745546989652,10.97606362,152.72,152.67,10.97606362]
[1745546990863,82.7,152.74,152.69,10.97606362]
[1745546991052,93.67606362,152.74,152.69,10.97606362]
[1745546991548,93.67606362,152.74,152.69,17.52526925]
[1745546991928,93.67606362,152.74,152.69,10.97606362]
[1745546992129,93.67606362,152.74,152.69,17.52514624]
[1745546992357,93.67606362,152.74,152.67,6.55007532]
[1745546992556,93.67606362,152.74,152.69,10.97606362]
[1745546993752,10.97606362,152.73,152.68,17.5255851]
[1745546994058,82.7,152.74,152.68,17.5255851]
[1745546994231,93.67606362,152.74,152.69,10.97606362]
[1745546994650,10.97606362,152.73,152.68,17.5255851]
[1745546995357,10.97606362,152.72,152.67,17.52604711]
[1745546995656,10.97606362,152.72,152.67,6.54998349]
[1745546995861,10.97606362,152.72,152.67,17.52604711]
[1745546996031,10.97606362,152.72,152.67,6.54998349]
[1745546996352,10.97606362,152.71,152.67,17.52604711]
[1745546996551,10.97606362,152.71,152.67,10.97606362]
[1745546996742,10.97606362,152.71,152.65,8.07650874]
[1745546996934,10.97606362,152.71,152.66,10.97606362]
[1745546997335,10.97606362,152.72,152.67,10.97606362]
[1745546997759,10.97606362,152.72,152.67,17.52611775]
[1745547000546,82.7,152.73,152.67,17.52611775]
[1745547000747,10.97606362,152.72,152.67,17.52611775]
[1745547001242,7.02689549,152.71,152.67,13.57694962]
[1745547001554,7.02689549,152.7,152.66,7.02689549]
[1745547001733,7.02689549,152.68,152.64,7.02689549]
[1745547001935,7.02689549,152.68,152.63,7.02689549]
[1745547002241,7.02689549,152.66,152.62,6.5522212]
[1745547002839,7.02689549,152.67,152.62,13.57911669]
[1745547003341,10.98577817,152.67,152.62,17.53799937]
[1745547004857,26.0,152.68,152.62,17.53799937]
[1745547005059,82.7,152.69,152.65,10.98577817]
[1745547005263,82.7,152.69,152.66,10.98577817]
[1745547005642,10.98577817,152.71,152.63,1.31020236]
[1745547005964,10.98577817,152.71,152.66,10.98577817]
[1745547006853,10.98577817,152.7,152.65,10.98577817]
[1745547007041,10.98577817,152.69,152.65,10.98577817]
[1745547007234,26.0,152.72,152.64,6.55136268]
[1745547007439,10.98577817,152.69,152.64,17.53714085]
[1745547007747,26.0,152.72,152.66,10.98577817]
[1745547007953,10.98577817,152.71,152.66,10.98577817]
[1745547008337,10.98577817,152.69,152.64,24.23953943]
[1745547008655,10.98577817,152.68,152.64,6.55136268]
[1745547009037,10.98577817,152.67,152.63,6.55167699]
[1745547009246,10.98577817,152.66,152.63,6.55167699]
[1745547009447,10.98577817,152.67,152.63,6.55167699]
[1745547009763,36.98577817,152.68,152.63,17.53745516]
[1745547012062,10.98577817,152.69,152.64,10.98577817]
[1745547013150,10.98577817,152.69,152.65,6.5509335]
[1745547014060,10.98577817,152.7,152.66,10.98577817]
[1745547015062,119.68577817,152.71,152.67,6.55007532]
[1745547015473,108.7,152.71,152.67,17.53585349]
[1745547015678,10.98577817,152.7,152.67,6.55007532]
[1745547016567,10.98577817,152.7,152.65,6.55081046]
[1745547016749,10.98577817,152.69,152.65,6.55081046]
[1745547017873,10.98577817,152.69,152.65,17.53658863]
[1745547018370,119.68577817,152.71,152.66,10.98577817]
[1745547019378,119.68577817,152.71,152.67,6.55007532]
[1745547019752,36.98577817,152.71,152.67,6.55007532]
[1745547020275,26.0,152.71,152.67,6.55007532]
[1745547020573,36.98577817,152.71,152.67,6.55007532]
[1745547021773,10.98577817,152.7,152.66,6.55039096]
[1745547022174,26.0,152.71,152.67,10.98577817]
[1745547023663,26.0,152.71,152.68,6.54964631]
[1745547024984,36.98577817,152.71,152.68,6.54964631]
[1745547025391,33.02704213,152.71,152.68,6.54964631]
[1745547025769,33.02704213,152.71,152.67,6.54995544]
[1745547026283,7.02704213,152.7,152.66,6.55037601]
[1745547032504,26.0,152.71,152.66,6.55037601]
[1745547032804,7.02704213,152.7,152.66,6.55037601]
[1745547032983,26.0,152.71,152.66,6.55037601]
[1745547033184,7.02704213,152.7,152.66,6.55037601]
[1745547034980,7.02704213,152.69,152.63,10.26985453]
[1745547035204,7.02704213,152.69,152.64,13.57827241]
[1745547036606,7.02704213,152.7,152.65,7.02704213]
[1745547038106,7.02704213,152.69,152.64,6.55123028]
[1745547038294,7.02704213,152.66,152.62,6.5518956]
[1745547038500,26.0,152.68,152.63,7.02704213]
[1745547038682,33.02704213,152.68,152.63,7.02704213]
[1745547039606,26.0,152.68,152.64,7.02704213]
[1745547039804,82.7,152.7,152.66,7.02704213]
[1745547040103,7.02704213,152.71,152.67,6.55007532]
[1745547040307,33.02704213,152.72,152.67,13.57711745]
[1745547040602,33.02704213,152.72,152.67,6.55007532]
[1745547040795,33.02704213,152.72,152.67,13.57711745]
[1745547041509,7.02704213,152.71,152.67,13.57711745]
[1745547042114,7.02704213,152.7,152.67,6.55007532]
[1745547042610,7.02704213,152.71,152.67,6.55007532]
[1745547043789,7.02704213,152.69,152.65,13.57797563]
[1745547043982,7.02704213,152.71,152.66,7.02704213]
[1745547044607,7.02704213,152.71,152.67,6.55007532]
[1745547046405,7.02704213,152.69,152.65,13.57797563]
[1745547047519,7.02704213,152.69,152.65,6.5509335]
[1745547047701,7.02704213,152.7,152.65,13.57797563]
[1745547047904,7.02704213,152.7,152.66,7.02704213]
[1745547050030,89.3238,152.78,152.69,7.02704213]
[1745547050231,0.063,152.78,152.76,7.02704213]
[1745547050525,7.02704213,152.77,152.7,19.95891972]
[1745547050695,7.02704213,152.76,152.71,7.02704213]
[1745547050897,7.02704213,152.77,152.72,7.02704213]
[1745547051197,0.063,152.78,152.74,7.02704213]
[1745547052106,0.063,152.78,152.75,8.99446197]
[1745547053120,0.063,152.78,152.75,6.54664484]
[1745547054115,0.063,152.78,152.74,7.02704213]
[1745547054306,0.063,152.78,152.74,13.57400115]
[1745547054821,7.09004213,152.78,152.74,13.57400115]
[1745547056115,7.09004213,152.78,152.73,6.54750212]
[1745547056303,7.09004213,152.78,152.73,13.57454425]
[1745547056509,7.09004213,152.78,152.73,6.54750212]
[1745547056723,7.02704213,152.76,152.72,13.57484184]
[1745547056920,7.02704213,152.76,152.72,6.54779971]
[1745547058209,7.02704213,152.76,152.72,13.57484184]
[1745547058408,7.02704213,152.77,152.72,13.57484184]
[1745547059126,7.02704213,152.77,152.72,6.54779971]
[1745547059329,7.02704213,152.77,152.72,13.57484184]
[1745547059514,7.02704213,152.77,152.73,7.02704213]
[1745547060629,0.063,152.78,152.75,7.02704213]
[1745547061013,0.063,152.78,152.74,7.02704213]
[1745547062126,0.063,152.78,152.75,6.54664484]
[1745547063232,0.063,152.78,152.73,18.64964886]
[1745547063525,0.063,152.78,152.74,7.02704213]
[1745547063727,7.02704213,152.77,152.72,6.54793085]
[1745547064029,7.02704213,152.77,152.73,7.02704213]
[1745547065107,0.063,152.78,152.74,7.02704213]
[1745547065628,0.063,152.78,152.75,6.54664484]
[1745547067242,0.063,152.78,152.74,13.57397225]
[1745547067429,7.09004213,152.78,152.74,6.54693012]
[1745547073141,0.063,152.78,152.74,13.57397225]
[1745547074744,0.063,152.78,152.76,7.02704213]
[1745547074958,0.063,152.78,152.77,7.02704213]
[1745547075252,0.063,152.78,152.76,7.02704213]
[1745547077755,0.063,152.78,152.77,6.54578778]
[1745547078048,0.063,152.78,152.76,6.54608094]
[1745547078756,7.09004213,152.78,152.75,6.54654974]
[1745547079455,7.02704213,152.77,152.73,6.54735453]
[1745547079758,0.063,152.78,152.71,7.66463753]
[1745547079759,7.02704213,152.75,152.71,6.54821697]
[1745547080762,7.09004213,152.78,152.73,7.02704213]
[1745547081530,7.09004213,152.78,152.74,7.02704213]
[1745547081957,7.09004213,152.78,152.74,13.57374099]
[1745547082162,0.063,152.78,152.77,7.02704213]
[1745547082526,0.063,152.78,152.77,25.67669099]
[1745547085755,0.063,152.78,152.77,32.22247877]
[1745547085940,0.063,152.79,152.78,18.64964886]
[1745547086147,0.063,152.79,152.78,44.32909364]
[1745547086966,0.063,152.79,152.78,50.87445298]
[1745547087348,0.063,152.8,152.78,50.87445298]
[1745547087548,0.063,152.8,152.79,8.33550062]
[1745547088052,0.063,152.8,152.79,27.12731105]
[1745547089041,0.063,152.8,152.79,33.672242]
[1745547093458,0.063,152.8,152.79,33.53008043]
[1745547094963,1e-08,152.8,152.79,106.2906516]
[1745547095162,0.063,152.81,152.8,27.86997475]
[1745547095361,0.063,152.81,152.8,63.0051854]
[1745547096467,0.063,152.81,152.8,69.54968801]
[1745547097762,0.063,152.82,152.8,69.54968801]
[1745547097982,0.063,152.82,152.81,27.12702259]
[1745547098188,1e-08,152.83,152.82,18.64964886]
[1745547098469,1e-08,152.83,152.82,50.73057818]
[1745547098677,0.063,152.85,152.84,18.79181043]
[1745547098848,0.063,152.85,152.84,27.12679458]
[1745547099053,0.063,152.85,152.84,36.20495891]
[1745547101067,0.063,152.85,152.84,42.74774875]
[1745547101656,0.063,152.87,152.84,59.10472336]
[1745547101970,0.063,152.87,152.86,7.02704213]
[1745547102170,0.063,152.87,152.86,8.33491532]
[1745547103354,0.063,152.87,152.86,14.87684911]
[1745547108740,0.063,152.87,152.86,7.84980698]
[1745547109263,13.28154213,152.87,152.81,7.02704213]
[1745547109471,7.02704213,152.85,152.8,7.02704213]
[1745547109655,7.02704213,152.86,152.81,8.33543597]
[1745547110383,7.02704213,152.86,152.82,6.54364611]
[1745547114073,7.02704213,152.85,152.81,6.54399797]
[1745547114272,7.02704213,152.84,152.81,6.54399797]
[1745547114475,7.02704213,152.82,152.79,6.54493095]
[1745547115550,7.02704213,152.82,152.78,6.54535934]
[1745547117177,7.02704213,152.82,152.78,13.57240147]
[1745547117374,82.7,152.86,152.81,7.02704213]
[1745547117554,82.7,152.86,152.82,7.02704213]
[1745547118172,7.9179,152.87,152.84,7.02704213]
[1745547119175,7.9179,152.87,152.85,6.54236179]
[1745547120457,0.063,152.87,152.86,7.02704213]
[1745547120662,0.063,152.87,152.86,8.33516328]
[1745547121196,0.063,152.87,152.86,33.52674593]
[1745547121367,0.063,152.87,152.86,37.4466295]
[1745547124384,0.063,152.87,152.83,6.54280199]
[1745547124573,0.063,152.87,152.83,17.48972769]
[1745547125164,11.0099257,152.87,152.83,6.54280199]
[1745547125365,10.9469257,152.86,152.82,6.54357584]
[1745547125772,11.0099257,152.87,152.83,10.9469257]
[1745547125971,0.063,152.87,152.83,10.9469257]
[1745547127271,0.063,152.87,152.84,10.9469257]
[1745547127970,0.063,152.87,152.85,6.54236179]
[1745547128167,0.063,152.87,152.85,17.48928749]
[1745547129075,0.063,152.87,152.85,6.54236179]
[1745547131263,0.063,152.87,152.83,17.49014365]
[1745547132174,0.063,152.87,152.84,10.9469257]
[1745547133095,0.063,152.87,152.85,10.9469257]
[1745547133393,0.063,152.87,152.86,6.54193379]
[1745547133770,0.063,152.87,152.83,18.64964886]
[1745547134077,0.063,152.87,152.84,10.9469257]
[1745547134386,0.063,152.87,152.83,17.49014365]
[1745547134575,11.0099257,152.87,152.83,6.54321795]
[1745547134778,0.063,152.87,152.85,10.9469257]
[1745547134977,0.063,152.87,152.86,10.9469257]
[1745547135270,0.063,152.87,152.86,36.13850835]
[1745547136377,1e-08,152.88,152.87,18.79181043]
[1745547136687,0.063,152.89,152.87,31.04644534]
[1745547136900,0.063,152.91,152.89,29.73873613]
[1745547137073,0.063,152.94,152.9,31.04618905]
[1745547137390,0.063,152.94,152.93,18.64964886]
[1745547137589,0.063,152.94,152.93,30.90391565]
[1745547137790,1e-08,152.94,152.93,31.04607722]
[1745547138868,1e-08,152.94,152.93,37.5850166]
[1745547139270,1e-08,152.94,152.93,84.50654272]
[1745547144673,1e-08,152.94,152.93,84.36438115]
[1745547146095,1e-08,152.94,152.93,17.48586508]
[1745547146483,1e-08,152.94,152.92,10.9469257]
[1745547146693,1e-08,152.94,152.91,17.48631497]
[1745547149198,1e-08,152.94,152.93,10.9469257]
[1745547150902,1e-08,152.94,152.93,17.48586508]
[1745547152999,1e-08,152.94,152.92,17.48618225]
[1745547153299,1e-08,152.94,152.92,6.53925655]
[1745547153601,1e-08,152.94,152.93,10.9469257]
[1745547154098,1e-08,152.94,152.92,17.48618225]
[1745547154502,1e-08,152.94,152.92,6.53925655]
[1745547154689,1e-08,152.94,152.92,17.48618225]
[1745547155896,1e-08,152.94,152.92,36.13583111]
[1745547156199,1e-08,152.94,152.91,17.48663484]
[1745547157297,1e-08,152.94,152.92,10.9469257]
[1745547158305,1e-08,152.94,152.91,10.9469257]
[1745547158812,1e-08,152.94,152.88,17.48800366]
[1745547158813,10.9469257,152.93,152.88,17.48800366]
[1745547159015,10.94692571,152.94,152.89,10.9469257]
[1745547159204,1e-08,152.94,152.9,10.9469257]
[1745547159508,1e-08,152.94,152.91,6.53979465]
[1745547159709,1e-08,152.94,152.91,17.48672035]
[1745547160922,1e-08,152.94,152.93,10.9469257]
[1745547161707,1e-08,152.94,152.93,36.13551394]
[1745547165707,1e-08,152.94,152.93,17.48586508]
[1745547168411,1e-08,152.94,152.93,18.79330179]
[1745547172013,1e-08,152.94,152.93,37.44295065]
[1745547175116,1e-08,152.94,152.93,26.49602495]
[1745547175325,1e-08,152.94,152.93,33.49765122]
[1745547176333,1e-08,152.94,152.93,33.63981279]
[1745547177519,1e-08,152.98,152.96,18.64964886]
[1745547177833,1e-08,152.98,152.97,27.10023312]
[1745547178505,0.063,153.03,152.98,18.64964886]
[1745547178818,0.063,153.03,153.0,25.65127513]
[1745547179415,0.063,153.03,153.0,36.11436859]
[1745547181925,0.063,153.03,153.0,36.25653016]
[1745547183111,0.063,153.03,153.02,10.92877202]
[1745547184232,0.063,153.03,153.02,17.46386547]
[1745547185322,0.063,153.03,153.02,36.11351433]
[1745547186130,0.063,153.03,153.02,48.49108867]
[1745547186310,0.03,153.07,153.06,29.72058245]
[1745547186514,0.03,153.07,153.06,31.02675559]
[1745547186715,1e-08,153.07,153.06,39.57914215]
[1745547186915,0.03,153.08,153.07,18.79181043]
[1745547187224,0.03,153.08,153.07,29.72058245]
[1745547187636,0.03,153.08,153.07,62.25354122]
[1745547187808,0.03,153.09,153.08,29.72058245]
[1745547188009,0.03,153.09,153.08,33.43539716]
[1745547188313,0.03,153.1,153.09,18.79181043]
[1745547188514,0.03,153.1,153.09,29.72058245]
[1745547188828,0.03,153.1,153.09,32.12949675]
[1745547189720,0.03,153.1,153.09,38.66160204]
[1745547190106,0.03,153.1,153.09,36.11052617]
[1745547193424,0.03,153.1,153.09,17.46087731]
[1745547193622,0.03,153.1,153.09,10.92877202]
[1745547193802,0.03,153.1,153.04,74.18509261]
[1745547193803,7.8203,153.09,153.01,6.53552055]
[1745547193998,10.92877202,153.04,153.01,6.53552055]
[1745547194203,10.92877202,153.03,153.0,6.53587575]
[1745547194629,10.92877202,153.04,153.0,6.53587575]
[1745547195027,10.92877202,153.02,152.98,10.92877202]
[1745547195230,10.92877202,153.02,152.98,6.53680219]
[1745547195545,13.26,153.07,153.01,10.92877202]
[1745547195739,24.18877202,153.07,153.02,10.92877202]
[1745547196330,18.74907202,153.09,153.04,10.92877202]
[1745547196532,7.8203,153.09,153.05,10.92877202]
[1745547197130,18.74907202,153.09,153.05,10.92877202]
[1745547197322,18.74907202,153.09,153.05,17.46251349]
[1745547197526,18.74907202,153.09,153.05,6.53374147]
[1745547198531,18.74907202,153.09,153.05,17.46251349]
[1745547198723,7.8203,153.09,153.05,17.46251349]
[1745547198907,7.8203,153.09,153.06,10.92877202]
[1745547199319,0.03,153.1,153.08,17.46091254]
[1745547199726,0.03,153.1,153.09,10.92877202]
[1745547200429,0.03,153.1,153.08,17.46091254]
[1745547202243,0.03,153.1,153.09,10.92877202]
[1745547202418,0.03,153.1,153.08,17.46091254]
[1745547202738,0.03,153.1,153.08,6.53214052]
[1745547204840,10.92877202,153.09,153.04,6.53423941]
[1745547205149,10.92877202,153.08,153.04,6.53423941]
[1745547205448,10.92877202,153.09,153.04,17.46301143]
[1745547206248,10.92877202,153.08,153.04,17.46301143]
[1745547206659,10.92877202,153.09,153.04,17.46301143]
[1745547207643,10.92877202,153.09,153.05,10.92877202]
[1745547208145,10.92877202,153.09,153.04,10.92877202]
[1745547209226,10.92877202,153.09,153.06,6.5333856]
[1745547210252,0.03,153.1,153.06,6.5333856]
[1745547210564,0.03,153.1,153.09,10.92877202]
[1745547211456,0.03,153.1,153.09,17.46087731]
[1745547212156,0.03,153.1,153.09,36.11052617]
[1745547212452,13.26,153.15,153.1,18.64964886]
[1745547212748,0.03,153.16,153.12,10.92877202]
[1745547212951,0.03,153.16,153.13,10.92877202]
[1745547213327,0.03,153.16,153.14,6.52997257]
[1745547215545,0.03,153.16,153.14,10.92877202]
[1745547215724,0.03,153.16,153.13,10.92877202]
[1745547216456,0.03,153.16,153.12,29.57842088]
[1745547217029,0.03,153.16,153.13,6.530399]
[1745547218257,0.03,153.16,153.13,17.45917102]
[1745547219446,0.03,153.16,153.14,10.92877202]
[1745547220558,0.03,153.16,153.15,6.52954619]
[1745547220874,10.95877202,153.16,153.12,6.53082549]
[1745547221036,10.92877202,153.13,153.09,6.53210529]
[1745547221232,10.92877202,153.12,153.09,6.53210529]
[1745547221432,10.92877202,153.12,153.1,2.40408207]
[1745547222465,10.92877202,153.12,153.11,6.53125204]
[1745547222865,10.92877202,153.13,153.11,6.53125204]
[1745547223955,18.82537202,153.14,153.11,6.53125204]
[1745547224455,18.82537202,153.14,153.1,6.53167864]
[1745547225463,7.8966,153.14,153.1,17.46045066]
[1745547225970,18.82537202,153.14,153.11,8.94110825]
[1745547226971,18.82537202,153.14,153.11,6.53087595]
[1745547228051,10.92877202,153.12,153.05,17.63994012]
[1745547228240,10.92877202,153.08,153.06,6.5333856]
[1745547228445,10.92877202,153.07,153.06,6.5333856]
[1745547228866,10.92877202,153.08,153.06,6.5333856]
[1745547229477,10.92877202,153.07,153.04,6.53423941]
[1745547229689,10.92877202,153.05,153.02,0.063]
[1745547229854,10.92877202,153.04,153.02,0.063]
[1745547230057,10.92877202,153.03,153.02,0.063]
[1745547230249,10.92877202,153.03,153.02,2.47891529]
[1745547231171,10.92877202,153.03,153.02,0.063]
[1745547231749,10.92877202,153.04,153.02,0.063]
[1745547233113,10.92877202,153.03,153.02,0.063]
[1745547251298,11.07093359,153.03,153.02,0.063]
[1745547251509,26.0,152.99,152.95,0.063]
[1745547251686,10.92877202,152.96,152.95,0.063]
[1745547254626,21.85754404,152.96,152.95,0.063]
[1745547255508,21.99970561,152.96,152.95,0.063]
[1745547255982,21.99970561,152.96,152.94,0.063]
[1745547255983,110.48096157,152.95,152.94,0.063]
[1745547256185,38.70973359,152.95,152.93,0.063]
[1745547256392,11.07093359,152.94,152.93,0.063]
[1745547258388,29.72058245,152.94,152.93,0.063]
[1745547258604,29.72058245,152.94,152.86,0.063]
[1745547258605,32.0025,152.91,152.86,0.063]
[1745547258786,10.92877202,152.87,152.86,0.063]
[1745547262514,11.07093359,152.87,152.86,0.063]
[1745547262686,13.28,152.9,152.86,0.063]
[1745547262886,10.92877202,152.89,152.86,0.063]
[1745547263315,10.92877202,152.88,152.86,0.063]
[1745547263501,10.92877202,152.87,152.86,0.063]
[1745547271394,7.01282429,152.87,152.86,0.063]
[1745547272900,33.01282429,152.87,152.86,0.063]
[1745547273114,115.85498586,152.87,152.86,0.063]
[1745547273820,26.14216157,152.85,152.84,0.063]
[1745547273994,52.48528586,152.85,152.84,0.063]
[1745547275425,56.43848377,152.85,152.84,0.063]
[1745547277338,50.2460222,152.85,152.84,0.063]
[1745547282222,24.2460222,152.85,152.84,0.063]
[1745547283724,24.38818377,152.85,152.84,0.063]
[1745547284315,50.38818377,152.85,152.84,0.063]
[1745547291345,24.38818377,152.85,152.84,0.063]
[1745547292018,43.03783263,152.85,152.84,0.063]
[1745547292844,26.0,152.82,152.79,0.063]
[1745547293051,10.9660222,152.8,152.79,0.063]
[1745547296223,24.2460222,152.8,152.79,0.063]
[1745547297451,20.30020044,152.8,152.79,0.063]
[1745547298742,48.52316377,152.8,152.78,0.03]
[1745547298927,26.0,152.78,152.77,0.063]
[1745547299260,33.02020044,152.78,152.77,0.063]
[1745547299758,39.27810044,152.78,152.77,0.063]
[1745547301263,0.14216157,152.77,152.75,0.03]
[1745547301441,26.14216157,152.73,152.72,0.03]
[1745547301643,0.14216157,152.72,152.7,0.063]
[1745547301833,7.02020044,152.71,152.7,0.063]
[1745547302454,7.16236201,152.71,152.7,0.063]
[1745547303352,11.12778923,152.71,152.7,0.063]
[1745547304259,26.0,152.73,152.7,0.063]
[1745547304487,10.98562766,152.71,152.7,0.063]
[1745547305776,24.26562766,152.72,152.7,0.063]
[1745547305976,10.98562766,152.74,152.7,0.063]
[1745547306174,10.98562766,152.75,152.7,11.04862766]
[1745547306373,10.98562766,152.74,152.7,11.04862766]
[1745547306982,24.26562766,152.76,152.71,10.98562766]
[1745547307184,13.28,152.76,152.7,0.063]
[1745547307489,10.98562766,152.74,152.7,17.59741613]
[1745547307778,10.98562766,152.75,152.7,17.59741613]
[1745547308784,13.28,152.76,152.7,17.59741613]
[1745547308785,10.98562766,152.74,152.7,6.61178847]
[1745547309089,10.98562766,152.73,152.7,6.61178847]